[Event "Titled Tuesday Blitz July 25 Early 2023"]
[White "ATM622"]
[Black "Rozman, Levy"]
[BlackFideId "2039877"]
[WhiteElo "2538"]
[BlackElo "2771"]
[Result "1-0"]
[Round "8"]
[TimeControl "180+2"]
[Date "2023.07.25"]
[WhiteClock "0:01:03"]
[BlackClock "0:00:00"]
[Board "39"]

1. d4 {[%clk 0:03:00]}  d5 {[%clk 0:02:57]} 2. c4 {[%clk 0:02:59]}  dxc4 {[%clk 0:02:56]} 3. e3 {[%clk 0:02:59]}  e5 {[%clk 0:02:56]} 4. Bxc4 {[%clk 0:02:57]}  Nc6 {[%clk 0:02:56]} 5. d5 {[%clk 0:02:55]}  Nce7 {[%clk 0:02:44]} 6. Nc3 {[%clk 0:02:52]}  Ng6 {[%clk 0:02:41]} 7. Nf3 {[%clk 0:02:47]}  Nf6 {[%clk 0:02:40]} 8. h3 {[%clk 0:02:45]}  a6 {[%clk 0:02:40]} 9. a4 {[%clk 0:02:42]}  Bd6 {[%clk 0:02:39]} 10. h4 {[%clk 0:02:35]}  Bg4 {[%clk 0:02:30]} 11. Be2 {[%clk 0:02:33]}  h6 {[%clk 0:02:23]} 12. Qb3 {[%clk 0:02:26]}  Rb8 {[%clk 0:02:19]} 13. Bd3 {[%clk 0:02:12]}  Qe7 {[%clk 0:02:14]} 14. Bxg6 {[%clk 0:02:08]}  fxg6 {[%clk 0:02:13]} 15. Nd2 {[%clk 0:02:06]}  O-O {[%clk 0:02:05]} 16. Nde4 {[%clk 0:02:02]}  Bf5 {[%clk 0:02:01]} 17. Ng3 {[%clk 0:01:56]}  Bd3 {[%clk 0:01:57]} 18. Qd1 {[%clk 0:01:46]}  e4 {[%clk 0:01:55]} 19. Nge2 {[%clk 0:01:37]}  Ng4 {[%clk 0:01:51]} 20. Nf4 {[%clk 0:01:37]}  Bxf4 {[%clk 0:01:30]} 21. Qxg4 {[%clk 0:01:25]}  Be5 {[%clk 0:01:24]} 22. Bd2 {[%clk 0:01:19]}  Kh7 {[%clk 0:01:02]} 23. h5 {[%clk 0:01:12]}  Qb4 {[%clk 0:00:39]} 24. hxg6+ {[%clk 0:01:07]}  Kh8 {[%clk 0:00:38]} 25. Qd7 {[%clk 0:01:05]}  Qd6 {[%clk 0:00:11]} 26. Rxh6+ {[%clk 0:01:03]}  Kg8 {[%clk 0:00:10]} 27. Rh8+ {[%clk 0:01:04]}  Kxh8 {[%clk 0:00:00]} 28. Qh3+ {[%clk 0:01:03]} 1-0


[Site "https://www.chess.com"]

[Event "Titled Tuesday Blitz July 25 Early 2023"]
[White "Garagulya, Konstantin"]
[Black "Tristan, Leonardo"]
[WhiteFideId "4128931"]
[BlackFideId "113816"]
[WhiteElo "2537"]
[BlackElo "2769"]
[Result "0-1"]
[Round "8"]
[TimeControl "180+2"]
[Date "2023.07.25"]
[WhiteClock "0:00:23"]
[BlackClock "0:01:21"]
[Board "40"]

1. d4 {[%clk 0:02:46]}  d5 {[%clk 0:02:59]} 2. Nf3 {[%clk 0:02:43]}  Nf6 {[%clk 0:02:59]} 3. c4 {[%clk 0:02:43]}  e6 {[%clk 0:03:00]} 4. Bg5 {[%clk 0:02:43]}  a6 {[%clk 0:02:44]} 5. Nbd2 {[%clk 0:02:42]}  Be7 {[%clk 0:02:34]} 6. e3 {[%clk 0:02:42]}  O-O {[%clk 0:02:34]} 7. Qc2 {[%clk 0:02:42]}  Nbd7 {[%clk 0:02:31]} 8. Bd3 {[%clk 0:02:35]}  h6 {[%clk 0:02:26]} 9. Bh4 {[%clk 0:02:35]}  c5 {[%clk 0:02:25]} 10. O-O {[%clk 0:02:33]}  b5 {[%clk 0:02:20]} 11. b3 {[%clk 0:02:30]}  dxc4 {[%clk 0:01:54]} 12. bxc4 {[%clk 0:02:30]}  cxd4 {[%clk 0:01:53]} 13. Nxd4 {[%clk 0:02:23]}  Ne5 {[%clk 0:01:50]} 14. cxb5 {[%clk 0:01:46]}  Nxd3 {[%clk 0:01:49]} 15. Qxd3 {[%clk 0:01:27]}  e5 {[%clk 0:01:46]} 16. Bxf6 {[%clk 0:01:27]}  Bxf6 {[%clk 0:01:46]} 17. Qe4 {[%clk 0:01:28]}  exd4 {[%clk 0:01:46]} 18. Qxa8 {[%clk 0:01:27]}  dxe3 {[%clk 0:01:46]} 19. Ne4 {[%clk 0:01:14]}  Bxa1 {[%clk 0:01:34]} 20. Rxa1 {[%clk 0:01:11]}  Qd4 {[%clk 0:01:33]} 21. Re1 {[%clk 0:01:08]}  Bf5 {[%clk 0:01:31]} 22. Qxa6 {[%clk 0:00:52]}  Bxe4 {[%clk 0:01:25]} 23. Rf1 {[%clk 0:00:29]}  e2 {[%clk 0:01:21]} 24. Re1 {[%clk 0:00:29]}  Qd2 {[%clk 0:01:21]} 25. Qa5 {[%clk 0:00:23]}  Qxa5 {[%clk 0:01:21]} 0-1


[Site "https://www.chess.com"]

[Event "Titled Tuesday Blitz July 25 Early 2023"]
[White "Tomaszewski, Kacper"]
[Black "Dvirnyy, Danyyil"]
[WhiteFideId "1127373"]
[BlackFideId "817570"]
[WhiteElo "2493"]
[BlackElo "2765"]
[Result "0-1"]
[Round "8"]
[TimeControl "180+2"]
[Date "2023.07.25"]
[WhiteClock "0:00:09"]
[BlackClock "0:00:39"]
[Board "41"]

1. d4 {[%clk 0:03:00]}  d6 {[%clk 0:02:58]} 2. e4 {[%clk 0:02:57]}  Nf6 {[%clk 0:02:58]} 3. Nc3 {[%clk 0:02:57]}  e5 {[%clk 0:02:58]} 4. Nge2 {[%clk 0:02:57]}  Be7 {[%clk 0:02:57]} 5. h3 {[%clk 0:02:57]}  c6 {[%clk 0:02:56]} 6. g4 {[%clk 0:02:56]}  b5 {[%clk 0:02:54]} 7. Ng3 {[%clk 0:02:54]}  O-O {[%clk 0:02:37]} 8. Bg2 {[%clk 0:02:54]}  b4 {[%clk 0:02:33]} 9. Nce2 {[%clk 0:02:53]}  Ba6 {[%clk 0:02:01]} 10. O-O {[%clk 0:02:49]}  exd4 {[%clk 0:02:00]} 11. Qxd4 {[%clk 0:02:46]}  c5 {[%clk 0:01:58]} 12. Qe3 {[%clk 0:02:36]}  Nc6 {[%clk 0:01:58]} 13. Nf5 {[%clk 0:02:33]}  Re8 {[%clk 0:01:56]} 14. Qg5 {[%clk 0:02:30]}  g6 {[%clk 0:01:51]} 15. Nh6+ {[%clk 0:02:24]}  Kf8 {[%clk 0:01:47]} 16. Qe3 {[%clk 0:01:51]}  Nd4 {[%clk 0:01:23]} 17. Nxd4 {[%clk 0:01:47]}  cxd4 {[%clk 0:01:21]} 18. Qxd4 {[%clk 0:01:43]}  Bxf1 {[%clk 0:01:21]} 19. Bxf1 {[%clk 0:01:41]}  Qb6 {[%clk 0:01:17]} 20. Qc4 {[%clk 0:01:30]}  d5 {[%clk 0:01:15]} 21. exd5 {[%clk 0:01:29]}  Rac8 {[%clk 0:01:14]} 22. Qb3 {[%clk 0:01:27]}  Ne4 {[%clk 0:00:57]} 23. Qf3 {[%clk 0:01:19]}  Bf6 {[%clk 0:00:55]} 24. g5 {[%clk 0:01:12]}  Rxc2 {[%clk 0:00:49]} 25. Be3 {[%clk 0:01:12]}  Nxg5 {[%clk 0:00:44]} 26. Bxg5 {[%clk 0:01:09]}  Rxf2 {[%clk 0:00:44]} 27. Be3 {[%clk 0:00:37]}  Rxe3 {[%clk 0:00:43]} 28. Qxf2 {[%clk 0:00:28]}  Rg3+ {[%clk 0:00:44]} 29. Bg2 {[%clk 0:00:26]}  Bd4 {[%clk 0:00:44]} 30. Rf1 {[%clk 0:00:22]}  f5 {[%clk 0:00:43]} 31. d6 {[%clk 0:00:17]}  Qxd6 {[%clk 0:00:42]} 32. Kh1 {[%clk 0:00:13]}  Bxf2 {[%clk 0:00:41]} 33. Rxf2 {[%clk 0:00:09]}  Kg7 {[%clk 0:00:39]} 0-1


[Site "https://www.chess.com"]

[Event "Titled Tuesday Blitz July 25 Early 2023"]
[White "Mishra, Manoj"]
[Black "Mayank Chakraborty"]
[WhiteFideId "5006007"]
[BlackFideId "25659766"]
[WhiteElo "2230"]
[BlackElo "2732"]
[Result "1-0"]
[Round "8"]
[TimeControl "180+2"]
[Date "2023.07.25"]
[WhiteClock "0:00:10"]
[BlackClock "0:00:00"]
[Board "42"]

1. d4 {[%clk 0:03:00]}  Nf6 {[%clk 0:02:46]} 2. Nf3 {[%clk 0:02:57]}  e6 {[%clk 0:02:47]} 3. c4 {[%clk 0:02:55]}  d5 {[%clk 0:02:46]} 4. g3 {[%clk 0:02:54]}  dxc4 {[%clk 0:02:46]} 5. Bg2 {[%clk 0:02:54]}  Nc6 {[%clk 0:02:47]} 6. Nc3 {[%clk 0:02:52]}  Bb4 {[%clk 0:02:31]} 7. O-O {[%clk 0:02:48]}  O-O {[%clk 0:02:29]} 8. Bg5 {[%clk 0:02:41]}  Rb8 {[%clk 0:02:26]} 9. e4 {[%clk 0:02:39]}  h6 {[%clk 0:02:22]} 10. Bxf6 {[%clk 0:02:37]}  Qxf6 {[%clk 0:02:21]} 11. e5 {[%clk 0:02:37]}  Qe7 {[%clk 0:02:20]} 12. Qc2 {[%clk 0:02:25]}  Rd8 {[%clk 0:02:15]} 13. Rad1 {[%clk 0:02:19]}  b5 {[%clk 0:02:07]} 14. d5 {[%clk 0:02:08]}  Bxc3 {[%clk 0:02:06]} 15. dxc6 {[%clk 0:02:01]}  Bb4 {[%clk 0:02:05]} 16. a3 {[%clk 0:01:55]}  Bc5 {[%clk 0:02:05]} 17. b4 {[%clk 0:01:56]}  Bb6 {[%clk 0:02:04]} 18. Rxd8+ {[%clk 0:01:45]}  Qxd8 {[%clk 0:02:03]} 19. Rd1 {[%clk 0:01:45]}  Qe8 {[%clk 0:02:00]} 20. a4 {[%clk 0:01:39]}  bxa4 {[%clk 0:02:00]} 21. Qxc4 {[%clk 0:01:33]}  a3 {[%clk 0:01:52]} 22. Qd3 {[%clk 0:01:11]}  a5 {[%clk 0:01:44]} 23. b5 {[%clk 0:01:02]}  Qf8 {[%clk 0:01:35]} 24. Ra1 {[%clk 0:00:33]}  Bc5 {[%clk 0:01:32]} 25. Bf1 {[%clk 0:00:28]}  Bb4 {[%clk 0:01:07]} 26. Qe4 {[%clk 0:00:27]}  Bc3 {[%clk 0:01:04]} 27. Ra2 {[%clk 0:00:25]}  Bb2 {[%clk 0:01:04]} 28. Bd3 {[%clk 0:00:24]}  g6 {[%clk 0:01:04]} 29. Nh4 {[%clk 0:00:21]}  Qb4 {[%clk 0:00:59]} 30. Qe2 {[%clk 0:00:18]}  Kg7 {[%clk 0:00:56]} 31. Nf3 {[%clk 0:00:16]}  Qb3 {[%clk 0:00:49]} 32. Bc4 {[%clk 0:00:16]}  Qc3 {[%clk 0:00:50]} 33. h4 {[%clk 0:00:13]}  h5 {[%clk 0:00:49]} 34. Kg2 {[%clk 0:00:11]}  a4 {[%clk 0:00:48]} 35. Qd3 {[%clk 0:00:11]}  Qb4 {[%clk 0:00:37]} 36. Qd8 {[%clk 0:00:09]}  Qxc4 {[%clk 0:00:36]} 37. Qf6+ {[%clk 0:00:09]}  Kg8 {[%clk 0:00:30]} 38. Ng5 {[%clk 0:00:10]}  Qd5+ {[%clk 0:00:11]} 39. Kh2 {[%clk 0:00:10]}  Qb3 {[%clk 0:00:00]} 40. Qxf7+ {[%clk 0:00:10]} 1-0


[Site "https://www.chess.com"]

[Event "Titled Tuesday Blitz July 25 Early 2023"]
[White "KhalilMousavi98"]
[Black "Nagare Kaivalya Sandip"]
[BlackFideId "25957929"]
[WhiteElo "2837"]
[BlackElo "2656"]
[Result "1-0"]
[Round "8"]
[TimeControl "180+2"]
[Date "2023.07.25"]
[WhiteClock "0:01:13"]
[BlackClock "0:00:17"]
[Board "43"]

1. e4 {[%clk 0:02:45]}  c5 {[%clk 0:02:59]} 2. Nf3 {[%clk 0:02:44]}  d6 {[%clk 0:03:00]} 3. d4 {[%clk 0:02:44]}  cxd4 {[%clk 0:03:01]} 4. Nxd4 {[%clk 0:02:44]}  Nf6 {[%clk 0:03:01]} 5. Nc3 {[%clk 0:02:45]}  a6 {[%clk 0:03:02]} 6. Bc4 {[%clk 0:02:46]}  e6 {[%clk 0:02:57]} 7. Be3 {[%clk 0:02:46]}  Be7 {[%clk 0:02:57]} 8. f3 {[%clk 0:02:45]}  O-O {[%clk 0:02:56]} 9. Qd2 {[%clk 0:02:44]}  b5 {[%clk 0:02:55]} 10. Bb3 {[%clk 0:02:44]}  Nbd7 {[%clk 0:02:51]} 11. Nc6 {[%clk 0:02:42]}  Qe8 {[%clk 0:02:51]} 12. O-O-O {[%clk 0:02:39]}  b4 {[%clk 0:02:23]} 13. Na4 {[%clk 0:02:36]}  d5 {[%clk 0:02:12]} 14. exd5 {[%clk 0:02:31]}  exd5 {[%clk 0:01:53]} 15. Rhe1 {[%clk 0:02:27]}  Bb7 {[%clk 0:01:47]} 16. Nxe7+ {[%clk 0:02:25]}  Qxe7 {[%clk 0:01:48]} 17. Bc5 {[%clk 0:02:21]}  Qxc5 {[%clk 0:01:48]} 18. Nxc5 {[%clk 0:02:20]}  Nxc5 {[%clk 0:01:49]} 19. Qxb4 {[%clk 0:02:21]}  Rfc8 {[%clk 0:01:47]} 20. Qa5 {[%clk 0:02:18]}  Rab8 {[%clk 0:01:35]} 21. Kb1 {[%clk 0:02:17]}  h5 {[%clk 0:01:34]} 22. g4 {[%clk 0:02:14]}  hxg4 {[%clk 0:01:32]} 23. fxg4 {[%clk 0:02:10]}  Nxb3 {[%clk 0:01:02]} 24. axb3 {[%clk 0:02:09]}  Nxg4 {[%clk 0:01:02]} 25. Rg1 {[%clk 0:02:06]}  Ne3 {[%clk 0:00:59]} 26. Rd3 {[%clk 0:01:52]}  Nxc2 {[%clk 0:00:56]} 27. Rc1 {[%clk 0:01:31]}  d4 {[%clk 0:00:38]} 28. Rxc2 {[%clk 0:01:28]}  Rxc2 {[%clk 0:00:39]} 29. Kxc2 {[%clk 0:01:29]}  Be4 {[%clk 0:00:39]} 30. Qxa6 {[%clk 0:01:26]}  Bxd3+ {[%clk 0:00:28]} 31. Qxd3 {[%clk 0:01:27]}  Rb4 {[%clk 0:00:27]} 32. Kb1 {[%clk 0:01:26]}  g6 {[%clk 0:00:27]} 33. Ka2 {[%clk 0:01:27]}  f5 {[%clk 0:00:26]} 34. Qd2 {[%clk 0:01:25]}  Rb8 {[%clk 0:00:20]} 35. Qxd4 {[%clk 0:01:24]}  Rf8 {[%clk 0:00:21]} 36. Qf4 {[%clk 0:01:22]}  Kf7 {[%clk 0:00:20]} 37. b4 {[%clk 0:01:22]}  Kf6 {[%clk 0:00:20]} 38. b5 {[%clk 0:01:23]}  g5 {[%clk 0:00:19]} 39. Qd6+ {[%clk 0:01:22]}  Kg7 {[%clk 0:00:20]} 40. b6 {[%clk 0:01:23]}  Rf7 {[%clk 0:00:17]} 41. Qc7 {[%clk 0:01:13]} 1-0


[Site "https://www.chess.com"]

[Event "Titled Tuesday Blitz July 25 Early 2023"]
[White "Lenaerts, Lennert"]
[Black "Harsh Suresh"]
[WhiteFideId "211435"]
[BlackFideId "45018464"]
[WhiteElo "2638"]
[BlackElo "2835"]
[Result "0-1"]
[Round "8"]
[TimeControl "180+2"]
[Date "2023.07.25"]
[WhiteClock "0:00:42"]
[BlackClock "0:01:54"]
[Board "44"]

1. d4 {[%clk 0:02:49]}  Nf6 {[%clk 0:02:59]} 2. c4 {[%clk 0:02:48]}  Nc6 {[%clk 0:02:57]} 3. Nf3 {[%clk 0:02:48]}  e6 {[%clk 0:02:54]} 4. Nc3 {[%clk 0:02:48]}  Bb4 {[%clk 0:02:53]} 5. Qc2 {[%clk 0:02:47]}  Qe7 {[%clk 0:02:53]} 6. Bd2 {[%clk 0:02:46]}  O-O {[%clk 0:02:53]} 7. a3 {[%clk 0:02:45]}  Bxc3 {[%clk 0:02:53]} 8. Bxc3 {[%clk 0:02:20]}  d6 {[%clk 0:02:52]} 9. b4 {[%clk 0:02:20]}  e5 {[%clk 0:02:51]} 10. dxe5 {[%clk 0:02:19]}  Nxe5 {[%clk 0:02:51]} 11. Nxe5 {[%clk 0:02:19]}  dxe5 {[%clk 0:02:52]} 12. e3 {[%clk 0:02:15]}  b6 {[%clk 0:02:47]} 13. Be2 {[%clk 0:02:15]}  Bb7 {[%clk 0:02:47]} 14. O-O {[%clk 0:02:15]}  Rfd8 {[%clk 0:02:47]} 15. Rfd1 {[%clk 0:02:14]}  Qe6 {[%clk 0:02:45]} 16. f3 {[%clk 0:02:10]}  h5 {[%clk 0:02:42]} 17. Rxd8+ {[%clk 0:02:01]}  Rxd8 {[%clk 0:02:42]} 18. Rd1 {[%clk 0:02:02]}  Re8 {[%clk 0:02:42]} 19. Be1 {[%clk 0:01:48]}  e4 {[%clk 0:02:28]} 20. f4 {[%clk 0:01:47]}  Ba6 {[%clk 0:02:23]} 21. b5 {[%clk 0:01:39]}  Bc8 {[%clk 0:02:22]} 22. a4 {[%clk 0:01:37]}  Qe7 {[%clk 0:02:18]} 23. Qb3 {[%clk 0:01:29]}  Bg4 {[%clk 0:02:16]} 24. Bxg4 {[%clk 0:01:24]}  Nxg4 {[%clk 0:02:16]} 25. h3 {[%clk 0:01:22]}  Nh6 {[%clk 0:02:16]} 26. Bb4 {[%clk 0:01:13]}  Qe6 {[%clk 0:02:15]} 27. Qc3 {[%clk 0:01:11]}  h4 {[%clk 0:02:15]} 28. c5 {[%clk 0:01:10]}  Nf5 {[%clk 0:02:13]} 29. a5 {[%clk 0:01:09]}  Qa2 {[%clk 0:01:58]} 30. cxb6 {[%clk 0:01:01]}  cxb6 {[%clk 0:01:58]} 31. axb6 {[%clk 0:01:01]}  axb6 {[%clk 0:01:59]} 32. Qc6 {[%clk 0:00:59]}  Re6 {[%clk 0:01:58]} 33. Qc8+ {[%clk 0:00:47]}  Kh7 {[%clk 0:01:58]} 34. Re1 {[%clk 0:00:44]}  Rg6 {[%clk 0:01:55]} 35. Qxf5 {[%clk 0:00:42]}  Qxg2# {[%clk 0:01:54]} 0-1


[Site "https://www.chess.com"]

[Event "Titled Tuesday Blitz July 25 Early 2023"]
[White "Kaasen, Tor Fredrik"]
[Black "Arat, Ufuk Sezen"]
[WhiteFideId "1516647"]
[BlackFideId "6309089"]
[WhiteElo "2813"]
[BlackElo "2628"]
[Result "1-0"]
[Round "8"]
[TimeControl "180+2"]
[Date "2023.07.25"]
[WhiteClock "0:00:28"]
[BlackClock "0:00:01"]
[Board "45"]

1. e4 {[%clk 0:03:00]}  c5 {[%clk 0:03:00]} 2. Nf3 {[%clk 0:03:00]}  e6 {[%clk 0:03:01]} 3. g3 {[%clk 0:02:59]}  b6 {[%clk 0:02:58]} 4. Bg2 {[%clk 0:02:59]}  Bb7 {[%clk 0:02:58]} 5. Qe2 {[%clk 0:02:59]}  Ne7 {[%clk 0:02:57]} 6. O-O {[%clk 0:02:59]}  g6 {[%clk 0:02:58]} 7. c3 {[%clk 0:02:59]}  Bg7 {[%clk 0:02:58]} 8. d4 {[%clk 0:03:00]}  d6 {[%clk 0:02:59]} 9. Rd1 {[%clk 0:02:59]}  O-O {[%clk 0:02:59]} 10. h4 {[%clk 0:02:58]}  h5 {[%clk 0:02:55]} 11. Bg5 {[%clk 0:02:57]}  Qc7 {[%clk 0:02:55]} 12. Nbd2 {[%clk 0:02:56]}  Nd7 {[%clk 0:02:53]} 13. Rac1 {[%clk 0:02:53]}  Rae8 {[%clk 0:02:51]} 14. Qe3 {[%clk 0:02:39]}  d5 {[%clk 0:02:44]} 15. e5 {[%clk 0:02:34]}  Nf5 {[%clk 0:02:38]} 16. Qf4 {[%clk 0:02:32]}  f6 {[%clk 0:02:32]} 17. exf6 {[%clk 0:02:31]}  Qxf4 {[%clk 0:02:33]} 18. Bxf4 {[%clk 0:02:29]}  Bxf6 {[%clk 0:02:30]} 19. Nb3 {[%clk 0:02:22]}  Ba6 {[%clk 0:01:54]} 20. Re1 {[%clk 0:02:14]}  Bd3 {[%clk 0:01:48]} 21. Ne5 {[%clk 0:02:01]}  Nxe5 {[%clk 0:01:43]} 22. Bxe5 {[%clk 0:02:02]}  Bxe5 {[%clk 0:01:38]} 23. Rxe5 {[%clk 0:02:03]}  Bc4 {[%clk 0:01:19]} 24. dxc5 {[%clk 0:01:09]}  Bxb3 {[%clk 0:01:17]} 25. axb3 {[%clk 0:01:10]}  bxc5 {[%clk 0:01:17]} 26. c4 {[%clk 0:01:11]}  d4 {[%clk 0:00:45]} 27. Rxc5 {[%clk 0:01:08]}  Rb8 {[%clk 0:00:46]} 28. Rb5 {[%clk 0:00:57]}  a6 {[%clk 0:00:45]} 29. Rxb8 {[%clk 0:00:55]}  Rxb8 {[%clk 0:00:46]} 30. c5 {[%clk 0:00:55]}  Rxb3 {[%clk 0:00:33]} 31. c6 {[%clk 0:00:55]}  Nd6 {[%clk 0:00:29]} 32. c7 {[%clk 0:00:48]}  Nc8 {[%clk 0:00:29]} 33. Rc4 {[%clk 0:00:35]}  e5 {[%clk 0:00:15]} 34. Bd5+ {[%clk 0:00:28]}  Kf8 {[%clk 0:00:15]} 35. Be6 {[%clk 0:00:28]}  d3 {[%clk 0:00:09]} 36. Bxc8 {[%clk 0:00:27]}  d2 {[%clk 0:00:01]} 37. Bg4 {[%clk 0:00:28]} 1-0


[Site "https://www.chess.com"]

[Event "Titled Tuesday Blitz July 25 Early 2023"]
[White "Nurgaliyeva, Zarina"]
[Black "Kosteniuk, Alexandra"]
[WhiteFideId "13730096"]
[BlackFideId "4128125"]
[WhiteElo "2624"]
[BlackElo "2776"]
[Result "0-1"]
[Round "8"]
[TimeControl "180+2"]
[Date "2023.07.25"]
[WhiteClock "0:00:15"]
[BlackClock "0:00:49"]
[Board "47"]

1. e4 {[%clk 0:03:00]}  c6 {[%clk 0:02:59]} 2. d4 {[%clk 0:03:00]}  d5 {[%clk 0:03:00]} 3. e5 {[%clk 0:03:00]}  c5 {[%clk 0:03:00]} 4. dxc5 {[%clk 0:02:58]}  e6 {[%clk 0:03:00]} 5. a3 {[%clk 0:02:54]}  Bxc5 {[%clk 0:02:55]} 6. Qg4 {[%clk 0:02:54]}  Ne7 {[%clk 0:02:51]} 7. Nf3 {[%clk 0:02:39]}  Ng6 {[%clk 0:02:49]} 8. Bd3 {[%clk 0:02:34]}  Nc6 {[%clk 0:02:44]} 9. Qg3 {[%clk 0:02:24]}  Qc7 {[%clk 0:02:41]} 10. Bf4 {[%clk 0:02:19]}  Nd4 {[%clk 0:02:34]} 11. Bxg6 {[%clk 0:02:10]}  fxg6 {[%clk 0:02:15]} 12. Nxd4 {[%clk 0:02:07]}  Bxd4 {[%clk 0:02:16]} 13. c3 {[%clk 0:02:05]}  Bb6 {[%clk 0:02:15]} 14. Nd2 {[%clk 0:02:00]}  O-O {[%clk 0:02:15]} 15. O-O {[%clk 0:01:58]}  Bd7 {[%clk 0:02:14]} 16. Be3 {[%clk 0:01:55]}  Rf5 {[%clk 0:02:13]} 17. f4 {[%clk 0:01:51]}  Raf8 {[%clk 0:02:04]} 18. Kh1 {[%clk 0:01:50]}  Bb5 {[%clk 0:01:57]} 19. Rf2 {[%clk 0:01:48]}  g5 {[%clk 0:01:55]} 20. Nb3 {[%clk 0:01:08]}  gxf4 {[%clk 0:01:44]} 21. Rxf4 {[%clk 0:01:00]}  Bxe3 {[%clk 0:01:20]} 22. Rxf5 {[%clk 0:00:59]}  Rxf5 {[%clk 0:01:19]} 23. Qxe3 {[%clk 0:00:59]}  Qxe5 {[%clk 0:01:11]} 24. Qxa7 {[%clk 0:00:54]}  Qe2 {[%clk 0:01:09]} 25. Na5 {[%clk 0:00:28]}  Qxb2 {[%clk 0:00:52]} 26. Rg1 {[%clk 0:00:28]}  Qf2 {[%clk 0:00:52]} 27. Qxb7 {[%clk 0:00:15]}  Qxg1+ {[%clk 0:00:49]} 0-1


[Site "https://www.chess.com"]

[Event "Titled Tuesday Blitz July 25 Early 2023"]
[White "Trifan, Andrei Ioan"]
[Black "Mahdavi, Reza"]
[WhiteFideId "12967068"]
[BlackFideId "12595926"]
[WhiteElo "2581"]
[BlackElo "2734"]
[Result "0-1"]
[Round "8"]
[TimeControl "180+2"]
[Date "2023.07.25"]
[WhiteClock "0:00:42"]
[BlackClock "0:01:51"]
[Board "52"]

1. e4 {[%clk 0:02:59]}  c5 {[%clk 0:02:56]} 2. Nf3 {[%clk 0:02:57]}  d6 {[%clk 0:02:56]} 3. d4 {[%clk 0:02:58]}  cxd4 {[%clk 0:02:57]} 4. Nxd4 {[%clk 0:02:59]}  Nf6 {[%clk 0:02:58]} 5. Nc3 {[%clk 0:02:59]}  a6 {[%clk 0:02:58]} 6. Bg5 {[%clk 0:02:59]}  e6 {[%clk 0:02:58]} 7. f4 {[%clk 0:02:59]}  Be7 {[%clk 0:02:59]} 8. Qf3 {[%clk 0:02:58]}  Qc7 {[%clk 0:03:00]} 9. O-O-O {[%clk 0:02:56]}  Nbd7 {[%clk 0:03:00]} 10. f5 {[%clk 0:02:50]}  Ne5 {[%clk 0:02:45]} 11. Qh3 {[%clk 0:02:49]}  O-O {[%clk 0:02:44]} 12. fxe6 {[%clk 0:02:40]}  Nfg4 {[%clk 0:02:44]} 13. Bh4 {[%clk 0:02:35]}  fxe6 {[%clk 0:02:38]} 14. Nf3 {[%clk 0:02:25]}  Nxf3 {[%clk 0:02:19]} 15. Bxe7 {[%clk 0:02:11]}  Nf2 {[%clk 0:02:10]} 16. Bxd6 {[%clk 0:01:46]}  Qa5 {[%clk 0:02:02]} 17. Bxf8 {[%clk 0:00:52]}  Nxh3 {[%clk 0:01:53]} 18. gxh3 {[%clk 0:00:50]}  Kxf8 {[%clk 0:01:51]} 19. Bc4 {[%clk 0:00:42]}  Qg5+ {[%clk 0:01:51]} 0-1


[Site "https://www.chess.com"]

[Event "Titled Tuesday Blitz July 25 Early 2023"]
[White "Eynullayev, Altay"]
[Black "Timmermans, Mark"]
[WhiteFideId "13413562"]
[BlackFideId "1026399"]
[WhiteElo "2567"]
[BlackElo "2732"]
[Result "0-1"]
[Round "8"]
[TimeControl "180+2"]
[Date "2023.07.25"]
[WhiteClock "0:00:00"]
[BlackClock "0:01:03"]
[Board "53"]

1. e4 {[%clk 0:03:00]}  e5 {[%clk 0:02:59]} 2. Nf3 {[%clk 0:03:00]}  Nc6 {[%clk 0:02:59]} 3. Bb5 {[%clk 0:03:01]}  f5 {[%clk 0:02:59]} 4. d3 {[%clk 0:02:57]}  fxe4 {[%clk 0:02:58]} 5. dxe4 {[%clk 0:02:58]}  Nf6 {[%clk 0:02:59]} 6. Nbd2 {[%clk 0:02:51]}  d6 {[%clk 0:02:58]} 7. c3 {[%clk 0:02:49]}  Be7 {[%clk 0:02:57]} 8. O-O {[%clk 0:02:48]}  O-O {[%clk 0:02:56]} 9. h3 {[%clk 0:02:48]}  Kh8 {[%clk 0:02:55]} 10. a4 {[%clk 0:02:48]}  Qe8 {[%clk 0:02:53]} 11. Re1 {[%clk 0:02:39]}  Nh5 {[%clk 0:02:53]} 12. Nf1 {[%clk 0:02:37]}  Qg6 {[%clk 0:02:52]} 13. Kh1 {[%clk 0:02:27]}  Be6 {[%clk 0:02:47]} 14. Bd3 {[%clk 0:01:53]}  Rf7 {[%clk 0:02:46]} 15. b4 {[%clk 0:01:38]}  Raf8 {[%clk 0:02:45]} 16. N1h2 {[%clk 0:01:38]}  Nf4 {[%clk 0:02:32]} 17. Bxf4 {[%clk 0:01:37]}  Rxf4 {[%clk 0:02:33]} 18. a5 {[%clk 0:01:22]}  Bh4 {[%clk 0:02:00]} 19. Nxh4 {[%clk 0:01:04]}  Rxh4 {[%clk 0:02:01]} 20. f3 {[%clk 0:00:53]}  Bxh3 {[%clk 0:01:54]} 21. gxh3 {[%clk 0:00:49]}  Rxh3 {[%clk 0:01:55]} 22. Ra2 {[%clk 0:00:36]}  Qh5 {[%clk 0:01:45]} 23. Rf1 {[%clk 0:00:21]}  Nd8 {[%clk 0:01:42]} 24. Bc4 {[%clk 0:00:20]}  Rf6 {[%clk 0:01:39]} 25. Rg2 {[%clk 0:00:20]}  Ne6 {[%clk 0:01:26]} 26. Bxe6 {[%clk 0:00:20]}  Rxe6 {[%clk 0:01:27]} 27. Qd2 {[%clk 0:00:19]}  Rh6 {[%clk 0:01:25]} 28. Rff2 {[%clk 0:00:17]}  Rxf3 {[%clk 0:01:17]} 29. Rxf3 {[%clk 0:00:16]}  Qxf3 {[%clk 0:01:18]} 30. Qf2 {[%clk 0:00:13]}  Qxf2 {[%clk 0:01:15]} 31. Rxf2 {[%clk 0:00:14]}  Kg8 {[%clk 0:01:15]} 32. Kg2 {[%clk 0:00:13]}  Rh4 {[%clk 0:01:15]} 33. Kf3 {[%clk 0:00:12]}  Rh3+ {[%clk 0:01:15]} 34. Ke2 {[%clk 0:00:11]}  Rxc3 {[%clk 0:01:16]} 35. Nf3 {[%clk 0:00:07]}  h6 {[%clk 0:01:16]} 36. Nd2 {[%clk 0:00:06]}  a6 {[%clk 0:01:15]} 37. Rf3 {[%clk 0:00:07]}  Rxf3 {[%clk 0:01:14]} 38. Kxf3 {[%clk 0:00:07]}  Kf7 {[%clk 0:01:15]} 39. Nf1 {[%clk 0:00:05]}  g5 {[%clk 0:01:15]} 40. Ne3 {[%clk 0:00:06]}  h5 {[%clk 0:01:13]} 41. Nd5 {[%clk 0:00:06]}  c6 {[%clk 0:01:12]} 42. Nb6 {[%clk 0:00:05]}  Ke6 {[%clk 0:01:12]} 43. Nc4 {[%clk 0:00:05]}  d5 {[%clk 0:01:11]} 44. Nd2 {[%clk 0:00:05]}  Kd6 {[%clk 0:01:08]} 45. Nb3 {[%clk 0:00:06]}  g4+ {[%clk 0:01:04]} 46. Ke3 {[%clk 0:00:04]}  h4 {[%clk 0:01:03]} 47. Nc5 {[%clk 0:00:04]}  h3 {[%clk 0:01:03]} 48. Kf2 {[%clk 0:00:04]}  dxe4 {[%clk 0:01:01]} 49. Nxe4+ {[%clk 0:00:03]}  Kd5 {[%clk 0:01:01]} 50. Nf6+ {[%clk 0:00:03]}  Kc4 {[%clk 0:01:01]} 51. Nxg4 {[%clk 0:00:03]}  Kxb4 {[%clk 0:01:02]} 52. Nxe5 {[%clk 0:00:04]}  c5 {[%clk 0:01:02]} 53. Kg3 {[%clk 0:00:02]}  c4 {[%clk 0:01:02]} 54. Kxh3 {[%clk 0:00:03]}  c3 {[%clk 0:01:03]} 55. Kg3 {[%clk 0:00:03]}  c2 {[%clk 0:01:03]} 56. Kf3 {[%clk 0:00:00]}  Kc3 {[%clk 0:01:03]} 0-1


[Site "https://www.chess.com"]